bitfinex-derivatives/quotes_ETHF0:USTF0_20250730
["timestamp","ask_amount","ask_price","bid_price","bid_amount"]
[1753835452861,0.542,3772.6,3772.5,8.66728392]
[1753835453163,0.3612,3772.9,3772.8,2.35158]
[1753835453362,2.4043,3772.9,3772.8,2.87168]
[1753835453664,2.9463,3772.9,3772.8,2.87168]
[1753835458970,0.9032,3772.9,3772.8,3.36578]
[1753835459369,2.9463,3772.9,3772.8,2.87168]
[1753835460267,0.542,3773.3,3772.8,2.3415]
[1753835460470,0.542,3773.8,3773.5,1.1967]
[1753835460668,1.7725,3773.8,3773.7,2.87156]
[1753835460870,2.2402,3773.8,3773.7,2.87156]
[1753835461066,0.9032,3773.8,3773.7,2.87156]
[1753835461267,0.2,3773.9,3773.8,2.8883]
[1753835462073,0.5612,3773.9,3773.8,2.8883]
[1753835462369,0.7061,3774.2,3774.1,0.4416]
[1753835462574,2.4043,3774.2,3774.1,1.6748]
[1753835462876,2.4043,3774.2,3774.1,6.9744277]
[1753835463269,2.9463,3774.2,3774.1,8.1711277]
[1753835463466,0.018,3774.3,3774.2,1.665]
[1753835463771,0.9212,3774.3,3774.2,2.8883]
[1753835463971,2.9643,3774.3,3774.2,2.8883]
[1753835464970,1.7408,3774.3,3774.2,2.8883]
[1753835465371,2.9643,3774.3,3774.2,2.8883]
[1753835471183,0.018,3774.3,3774.2,8.18736603]
[1753835471383,0.018,3774.3,3774.2,29.86936603]
[1753835471881,0.3792,3774.3,3774.2,29.86936603]
[1753835472476,0.018,3774.3,3774.2,29.86936603]
[1753835472679,2.9463,3775.4,3775.3,1.99713]
[1753835472881,2.9463,3775.4,3775.3,3.41813]
[1753835473075,2.9463,3775.4,3775.3,8.71719603]
[1753835473282,1.7228,3775.4,3775.3,8.71719603]
[1753835473781,0.7061,3775.7,3775.6,0.52979]
[1753835473979,2.8968,3775.7,3775.6,3.38509]
[1753835475482,2.8517,3775.4,3775.3,0.52983]
[1753835475681,2.8517,3775.4,3775.3,22.19383]
[1753835476574,2.8517,3775.4,3775.3,22.54203]
[1753835476787,2.8517,3775.4,3775.3,24.55603]
[1753835477283,2.0235,3775.7,3775.6,0.52979]
[1753835477473,0.3413,3775.7,3775.6,3.38509]
[1753835477680,0.5413,3775.9,3775.8,3.38506]
[1753835477879,0.2,3775.9,3775.8,3.38506]
[1753835478084,0.2,3775.9,3775.8,8.68258208]
[1753835478879,0.2,3775.9,3775.8,30.34858208]
[1753835479278,0.2,3775.9,3775.8,30.34758208]
[1753835480780,2.3907,3775.9,3775.8,30.33858208]
[1753835480984,3.0517,3775.9,3775.8,30.33858208]
[1753835481382,0.2,3775.9,3775.8,8.68258208]
[1753835481586,3.0517,3775.9,3775.8,5.29752208]
[1753835481793,2.8517,3775.3,3775.2,23.34834]
[1753835482092,2.8517,3775.3,3775.2,23.36234]
[1753835482692,2.8517,3775.3,3775.2,25.04714]
[1753835484095,2.8517,3775.3,3775.2,2.89204]
[1753835484292,2.8517,3775.3,3775.2,24.55104]
[1753835485097,1.6822,3775.2,3774.2,1.1917]
[1753835485294,2.8517,3774.3,3774.2,2.3622]
[1753835485496,2.8517,3774.3,3774.2,29.3118624]
[1753835485791,2.8517,3774.3,3774.2,25.03729]
[1753835486093,2.8517,3774.3,3774.2,6.0049624]
[1753835486398,2.8517,3774.0,3773.9,0.53002]
[1753835486593,2.8517,3774.0,3773.9,24.53822]
[1753835486793,2.8517,3774.0,3773.9,30.33038603]
[1753835487187,1.3482,3774.6,3774.5,0.4632]
[1753835487391,1.1695,3774.9,3774.8,1.1705]
[1753835487693,40.8,3775.8,3774.8,23.677]
[1753835487893,0.661,3775.8,3775.5,0.52981]
[1753835488099,2.8517,3775.6,3775.5,2.8553]
[1753835488296,2.8517,3775.1,3775.0,3.38518]
[1753835488495,2.8517,3775.1,3775.0,25.03718]
[1753835488702,2.8517,3775.1,3775.0,30.33428116]
[1753835488898,2.8517,3775.1,3775.0,30.33728116]
[1753835489191,1.1695,3774.7,3774.6,0.52992]
[1753835489394,2.8517,3774.7,3774.6,22.18492]
[1753835490192,2.8517,3774.7,3774.6,25.04722]
[1753835490487,2.8517,3774.7,3774.5,0.52994]
[1753835490694,2.8517,3774.7,3774.6,21.66]
[1753835490893,1.1695,3774.5,3774.4,0.52995]
[1753835491100,2.8517,3774.5,3774.4,22.18595]
[1753835491602,2.8517,3774.5,3774.4,22.18195]
[1753835492101,2.8517,3774.5,3774.4,24.54315]
[1753835493000,2.8517,3774.5,3774.4,24.53615]
[1753835493395,2.8517,3774.5,3774.4,2.89215]
[1753835493596,2.8517,3774.5,3774.4,24.00215]
[1753835494499,2.8517,3774.5,3774.4,22.16895]
[1753835494704,2.8517,3774.5,3773.6,40.13787]
[1753835494705,2.8517,3774.0,3773.7,0.53005]
[1753835494899,2.8517,3773.8,3773.7,0.53005]
[1753835495102,2.8517,3773.7,3773.6,5.29878525]
[1753835495310,1.1695,3773.7,3773.4,0.53009]
[1753835495501,1.1695,3773.7,3773.6,1.70057]
[1753835495804,1.1695,3773.7,3773.6,3.38537]
[1753835495999,2.8517,3773.7,3773.6,3.38537]
[1753835497305,2.8517,3773.7,3773.6,2.89227]
[1753835498103,2.8517,3773.7,3773.6,3.38537]
[1753835498899,2.8517,3773.7,3773.6,2.89227]
[1753835499102,2.8517,3773.7,3773.6,2.35927]
[1753835499500,2.8517,3773.7,3773.6,1.8292]
[1753835499998,2.8517,3773.7,3773.6,2.8553]
[1753835501196,0.8613,3774.3,3774.2,0.52999]
[1753835501394,0.8613,3774.6,3774.5,1.1705]
[1753835501601,0.52,3775.0,3774.8,0.5299]
[1753835501799,2.1907,3775.0,3774.9,2.3622]
[1753835502000,2.8517,3775.0,3774.7,0.52991]
[1753835502306,1.1695,3774.8,3774.7,1.70041]
[1753835502509,2.8517,3774.8,3774.7,2.35911]
[1753835503402,2.8517,3774.8,3774.7,3.38521]
[1753835504100,41.3144,3775.1,3775.0,0.95738]
[1753835504299,1.1292,3775.5,3775.4,0.52982]
[1753835504500,1.1292,3775.5,3775.0,21.609]
[1753835504501,0.52986,3775.2,3775.0,5.29836413]
[1753835504804,1.1292,3774.8,3774.7,23.25261]
[1753835505108,2.8448,3774.8,3774.7,24.93031]
[1753835505408,2.8448,3774.8,3774.7,24.4074]
[1753835506402,2.8448,3774.8,3774.7,2.7634]
[1753835506597,2.8448,3774.8,3774.7,22.7297]
[1753835507309,2.8448,3774.8,3774.7,23.4218]
[1753835507903,2.8448,3774.8,3774.7,23.9092]
[1753835510310,2.8448,3774.8,3774.7,24.4074]
[1753835511405,3.3747,3774.8,3774.7,2.7634]
[1753835511611,3.3747,3774.8,3774.7,24.3724]
[1753835511909,2.8448,3774.8,3774.7,24.3724]
[1753835512205,0.52988,3775.0,3774.8,0.5299]
[1753835512405,3.37468,3775.0,3774.9,2.7634]
[1753835512800,0.52987,3775.1,3774.9,2.7634]
[1753835513005,1.0438,3775.2,3774.9,2.7634]
[1753835513006,0.5144,3775.0,3774.9,3.29329]
[1753835513304,2.8452,3775.6,3775.5,1.0857]
[1753835513505,2.3154,3775.6,3775.5,2.7634]
[1753835513710,2.8448,3775.6,3775.5,2.7634]
[1753835515815,2.8448,3775.6,3775.5,3.29321]
[1753835516111,2.8448,3775.6,3775.5,2.7634]
[1753835518004,0.52978,3775.7,3775.5,2.7634]
[1753835518313,2.8448,3775.6,3775.5,2.7634]
[1753835522114,0.2,3775.9,3775.8,1.0857]
[1753835522316,0.2,3775.9,3775.8,2.7634]
[1753835522513,0.5524,3775.9,3775.8,2.7634]
[1753835522709,1.0668,3775.9,3775.8,2.7634]
[1753835522914,0.2,3775.9,3775.8,29.60922058]
[1753835528420,3.0448,3775.9,3775.8,29.60222058]
[1753835529218,0.2,3775.9,3775.8,29.60222058]
[1753835530114,0.5524,3775.9,3775.8,29.60222058]
[1753835530719,0.5524,3775.9,3775.8,8.06022058]
[1753835530919,0.5524,3775.9,3775.8,29.60122058]
[1753835531521,0.5524,3775.9,3775.8,8.06022058]
[1753835531722,0.5524,3775.9,3775.8,29.60122058]
[1753835532319,0.2,3775.9,3775.8,29.60122058]
[1753835535622,2.164,3775.9,3775.8,29.60122058]
[1753835536018,1.4943,3775.9,3775.8,29.60122058]
[1753835536829,0.5356,3775.9,3775.8,29.60122058]
[1753835537034,0.2,3775.9,3775.8,29.60122058]
[1753835537534,1.3672,3775.9,3775.3,1.1785]
[1753835537726,1.3672,3775.9,3775.1,6.41037412]
[1753835537727,2.7956,3775.3,3775.1,3.63296]
[1753835537927,2.7956,3775.3,3775.2,21.537]
[1753835539629,2.7956,3775.3,3775.2,22.2207]
[1753835539932,2.7956,3775.3,3775.2,23.3297]
[1753835541836,2.7956,3775.3,3775.2,23.8225]
[1753835542237,2.7956,3775.8,3775.7,3.33138]
[1753835542531,0.8433,3775.8,3775.7,3.33138]
[1753835542737,0.3356,3775.8,3775.7,1.66008]
[1753835542928,0.2,3775.9,3775.7,28.4947424]
[1753835543329,21.537,3777.2,3775.8,1.3244]
[1753835543330,1.6645,3776.7,3775.8,1.3244]
[1753835543526,2.7956,3776.6,3776.5,0.3396]
[1753835544032,2.7956,3776.6,3776.3,22.1994]
[1753835544239,1.1311,3776.4,3776.3,24.35219]
[1753835544427,2.7956,3776.4,3776.3,24.35219]
[1753835544630,2.7956,3776.4,3776.3,24.86829]
[1753835545437,2.7956,3776.4,3776.3,22.2207]
[1753835545639,2.7956,3776.2,3776.1,0.52972]
[1753835545830,1.8008,3776.2,3776.1,21.536]
[1753835546025,2.7956,3776.2,3776.1,21.536]
[1753835546232,0.3356,3776.2,3776.1,24.3376]
[1753835546440,0.3356,3776.2,3776.1,29.63371926]
[1753835547241,0.8433,3776.2,3776.1,29.63371926]
[1753835548033,0.3356,3776.2,3776.1,29.63371926]
[1753835548241,1.0053,3776.4,3776.3,1.1303]
[1753835548439,2.7956,3776.4,3776.3,24.3376]
[1753835551038,2.7956,3776.4,3776.3,23.8215]
[1753835551226,2.7956,3776.4,3776.2,0.52971]
[1753835551434,2.7956,3776.2,3776.1,0.52972]
[1753835551633,2.7956,3776.2,3776.1,22.06372]
[1753835551937,1.1311,3776.0,3775.6,0.52979]
[1753835552234,2.7956,3775.8,3775.7,23.19408]
[1753835552432,2.7956,3775.8,3775.7,24.86538]
[1753835553228,40.8,3776.9,3776.2,0.5297]
[1753835553229,1.1311,3776.3,3776.2,0.5297]
[1753835553428,2.7956,3776.3,3776.2,3.3313]
[1753835555634,0.3356,3776.3,3776.2,3.3313]
[1753835557440,2.1259,3776.6,3776.2,5.29625951]
[1753835557637,1.4723,3776.2,3775.5,3.30727412]
[1753835557938,1.9337,3775.8,3775.7,5.64035951]
[1753835558131,0.52978,3775.7,3775.5,5.29625951]
[1753835558335,1.4723,3775.1,3775.0,3.30727412]
[1753835558642,2.6034,3775.1,3775.0,3.30727412]
[1753835558837,3.13328,3775.0,3774.9,3.30727412]
[1753835559042,2.6034,3775.0,3774.9,3.30727412]
[1753835559234,0.3356,3775.0,3774.9,2.8016]
[1753835559444,2.6034,3775.4,3775.3,1.7927]
[1753835559933,0.6801,3775.7,3775.6,1.1303]
[1753835560140,2.5952,3775.7,3775.6,1.7927]
[1753835561450,2.5952,3775.7,3775.6,2.2855]
[1753835562046,2.5952,3775.7,3775.6,2.8016]
[1753835562249,0.3356,3775.7,3775.6,2.8016]
[1753835562947,0.5077,3776.0,3775.7,0.52978]
[1753835563146,0.3356,3776.3,3776.2,1.1303]
[1753835563344,1.1311,3775.8,3775.7,1.66007]
[1753835563541,2.0875,3775.8,3775.7,1.66007]
[1753835563753,2.5979,3775.8,3775.7,2.79067]
[1753835564154,2.5979,3775.8,3775.7,3.27877]
[1753835564359,0.3356,3776.2,3776.1,1.0618]
[1753835564663,1.9356,3776.2,3776.1,2.1897]
[1753835564954,2.5576,3776.2,3776.1,2.6805]
[1753835565159,2.5576,3776.2,3776.1,2.1924]
[1753835565355,0.798,3775.6,3775.5,2.72221]
[1753835565563,0.798,3775.6,3775.5,24.75431]
[1753835565564,1.9356,3775.6,3775.5,24.75431]
[1753835565758,1.9356,3775.6,3775.5,30.05070977]
[1753835565957,2.5576,3775.6,3775.5,8.50670977]
[1753835568556,1.9356,3775.9,3775.8,2.71946]
[1753835568862,1.9356,3775.9,3775.8,3.21026]
[1753835569960,0.3356,3775.9,3775.8,3.21026]
[1753835570361,0.846,3776.1,3776.0,1.59154]
[1753835570562,0.846,3776.1,3776.0,3.21024]
[1753835570758,1.9356,3776.1,3776.0,3.21024]
[1753835570959,2.2199,3776.1,3776.0,3.21024]
[1753835571463,2.5576,3776.1,3776.0,3.21024]
[1753835571654,0.798,3776.1,3776.0,3.21024]
[1753835572057,1.3084,3776.1,3776.0,3.21024]
[1753835572258,1.9356,3776.1,3776.0,3.21024]
[1753835572766,2.2199,3776.1,3776.0,3.21024]
[1753835573559,2.5576,3776.1,3776.0,3.21024]
[1753835574765,2.5576,3776.1,3776.0,2.72214]
[1753835575261,2.5576,3776.1,3776.0,3.21024]
[1753835575461,0.3356,3776.2,3776.0,5.29654003]
[1753835575661,2.5576,3776.1,3775.9,0.52974]
[1753835575966,1.1357,3775.6,3775.5,5.61244003]
[1753835576161,1.1357,3775.6,3775.4,5.29654003]
[1753835576460,1.1357,3775.5,3775.4,0.52981]
[1753835576662,2.5576,3775.9,3775.8,0.52976]
[1753835576865,2.5576,3775.9,3775.8,1.59156]
[1753835577764,2.5576,3775.9,3775.8,3.21026]
[1753835577765,0.3356,3775.9,3775.8,3.21026]
[1753835580465,2.0472,3775.8,3775.6,21.532]
[1753835580767,2.0472,3775.7,3775.5,0.52981]
[1753835580965,2.5576,3775.6,3775.5,0.84571]
[1753835581163,2.5576,3775.6,3775.5,8.01903058]
[1753835582571,2.5576,3775.6,3775.5,8.50713058]
[1753835583668,0.2843,3776.4,3775.7,1.6187]
[1753835583864,2.5576,3776.4,3776.3,2.1924]
[1753835584169,2.5576,3776.4,3776.3,1.5526]
[1753835584370,2.5576,3776.4,3776.3,1.0618]
[1753835585171,2.5576,3776.1,3776.0,1.4465]
[1753835585471,1.1357,3775.9,3775.8,0.52976]
[1753835585666,2.5576,3775.9,3775.8,0.52976]
[1753835586265,2.5576,3775.9,3775.8,0.84566]
[1753835586467,2.5576,3775.9,3775.8,2.72216]
[1753835586666,2.5576,3775.9,3775.8,3.21026]
[1753835587675,2.5576,3775.9,3775.8,2.6805]
[1753835590969,2.5576,3775.9,3775.8,2.1924]
[1753835592881,2.5576,3775.9,3775.8,2.6805]
[1753835593074,2.0472,3776.4,3776.3,2.1924]
[1753835593378,2.5576,3776.4,3776.3,2.6805]
[1753835593677,2.5576,3776.4,3776.3,1.0618]
[1753835593977,2.5576,3776.4,3776.0,0.52973]
[1753835593978,2.0909,3775.7,3775.6,2.08139]
[1753835594273,2.5202,3775.7,3775.6,7.37750926]
[1753835594774,3.04999,3775.7,3775.3,1.02413]
[1753835594979,1.32427,3776.3,3775.1,3.30727412]
[1753835594980,3.05005,3775.2,3775.1,3.30727412]
[1753835595172,2.5202,3775.2,3774.8,0.5299]
[1753835595372,0.7591,3775.0,3774.9,1.8739]
[1753835595576,2.5202,3775.0,3774.9,2.1841]
[1753835595773,2.5202,3775.0,3774.9,0.3102]
[1753835596476,2.78377,3774.3,3774.2,3.30727412]
[1753835596677,3.05017,3774.3,3774.2,3.30727412]
[1753835596878,3.05017,3774.3,3774.1,5.29808341]
[1753835597074,1.0985,3774.0,3773.9,1.5516]
[1753835597274,2.5202,3774.0,3773.9,2.1841]
[1753835597577,2.2538,3774.0,3773.9,2.6742]
[1753835597781,1.5963,3774.0,3773.9,2.6742]
[1753835598178,1.32473,3775.0,3773.8,0.19608622]
[1753835598179,3.05023,3773.9,3773.8,0.19608622]
[1753835600075,3.05023,3773.9,3772.8,0.3102]
[1753835600076,1.7676,3772.9,3772.8,0.3102]
[1753835600277,2.62758,3772.8,3772.7,3.30727412]
[1753835600483,2.62762,3772.6,3772.5,2.0417]
[1753835600680,2.0974,3772.6,3772.5,2.6742]
[1753835600983,1.2569,3772.6,3772.5,2.6742]
[1753835601181,1.9144,3772.6,3772.5,2.6742]
[1753835601484,2.0974,3772.0,3771.9,3.30727412]
[1753835601878,2.0974,3771.9,3771.8,1.2534902]
[1753835602183,2.0974,3771.9,3771.8,2.3802902]
[1753835602384,42.8974,3771.9,3771.8,2.3802902]
[1753835602580,42.8974,3771.9,3771.8,2.8703902]
[1753835602973,42.0569,3771.9,3771.8,2.8703902]
[1753835603577,2.0974,3771.9,3771.8,0.5063902]
[1753835603773,0.3298,3771.3,3771.2,0.01856148]
[1753835603986,1.9144,3771.3,3771.2,0.01856148]
[1753835604380,0.3298,3771.4,3771.3,3.2046]
[1753835604689,1.9144,3771.7,3771.6,1.0573]
[1753835605385,40.8,3771.8,3771.7,1.58764]
[1753835605587,40.8,3771.8,3771.7,3.20454]
[1753835605984,41.9553,3771.8,3771.7,3.20454]
[1753835606379,40.8,3771.8,3771.7,3.20454]
[1753835606887,0.7591,3772.0,3771.9,1.5876]
[1753835607190,1.9144,3772.0,3771.9,2.6742]
[1753835607385,1.9144,3772.0,3771.8,0.53032]
[1753835607386,42.7144,3772.0,3771.5,0.53036]
[1753835607591,1.4166,3771.6,3771.5,2.71446]
[1753835607891,1.9144,3771.6,3771.5,3.20456]
[1753835608190,1.9144,3771.6,3771.5,2.71446]
[1753835608490,41.9553,3772.0,3771.9,3.20451]
[1753835608786,41.9553,3772.0,3771.9,2.71441]
[1753835608989,41.9553,3772.0,3771.9,2.08191]
[1753835609190,41.9553,3772.0,3771.9,3.20451]
[1753835610390,41.9553,3772.0,3771.9,2.57201]
[1753835610584,41.9553,3772.0,3771.9,3.20451]
[1753835611890,40.8,3772.0,3771.9,3.20451]
[1753835612882,23.4614,3772.2,3772.1,1.58758]
[1753835613082,23.4614,3772.2,3772.1,3.20448]
[1753835613292,64.2614,3772.2,3772.1,3.20448]
[1753835613989,1.9144,3772.2,3772.1,3.20448]
[1753835614491,0.7591,3772.0,3771.9,0.8405]
[1753835614683,1.9144,3772.0,3771.9,0.5303]
[1753835615185,1.1553,3771.9,3771.8,0.53032]
[1753835615386,1.9144,3771.9,3771.8,0.53032]
[1753835615781,1.1553,3771.5,3771.2,0.01856148]
[1753835615986,1.9144,3771.3,3771.2,0.54896148]
[1753835616187,1.9144,3771.3,3771.2,1.18666148]
[1753835616386,1.9144,3771.3,3771.2,2.10056148]
[1753835617194,1.9144,3771.3,3771.2,0.01856148]
[1753835617384,1.9144,3771.3,3770.6,0.53049]
[1753835617585,1.9144,3770.7,3770.5,0.5305]
[1753835617894,1.9144,3770.6,3770.5,0.5305]
[1753835618093,1.9144,3770.6,3770.5,0.8407]
[1753835618388,22.08045,3771.0,3770.7,0.53048]
[1753835618699,0.7591,3770.4,3770.3,0.3102]
[1753835618897,0.3298,3770.0,3769.9,0.53058]
[1753835619190,1.9144,3769.9,3769.8,0.19629428]
[1753835619391,0.7591,3769.0,3768.9,2.47513]
[1753835619688,1.9144,3769.0,3768.9,0.53073]
[1753835619885,0.3298,3769.0,3768.9,3.20493]
[1753835620090,1.9144,3769.4,3769.3,1.5516]
[1753835620292,0.7591,3768.8,3768.7,3.20496]
[1753835620688,0.3298,3768.8,3768.7,3.20496]
[1753835621095,0.7591,3768.8,3768.7,3.20496]
[1753835621298,1.9144,3768.8,3768.7,3.20496]
[1753835621504,0.7591,3768.8,3768.7,3.20496]
[1753835622194,1.9144,3768.8,3768.7,0.84096]
[1753835622391,40.8,3769.2,3769.1,0.53071]
[1753835622699,63.5123,3769.2,3769.1,2.71481]
[1753835622893,63.5123,3769.2,3769.1,3.20491]
[1753835623296,0.7591,3769.0,3768.9,0.53073]
[1753835623598,1.9144,3769.0,3768.9,0.84093]
[1753835623786,1.9144,3769.0,3768.9,3.20963]
[1753835624393,40.8,3769.2,3769.1,3.1959]
[1753835624588,40.8,3769.2,3768.4,1.32702]
[1753835624589,0.7423,3769.8,3769.7,2.6652]
[1753835624794,0.3071,3769.8,3769.7,3.19582]
[1753835626187,1.1828,3769.7,3769.5,0.53064]
[1753835626392,1.9251,3769.0,3768.9,3.19593]
[1753835626596,1.9251,3769.0,3768.9,0.53073]
[1753835626891,1.1828,3769.0,3768.9,0.53073]
[1753835627593,41.9828,3769.0,3768.9,0.53073]
[1753835627790,41.9828,3769.0,3768.8,0.53074]
[1753835627991,1.1828,3768.9,3768.8,0.53074]
[1753835628787,0.5052,3768.9,3768.8,1.64694]
[1753835628998,62.365,3769.0,3768.8,2.15234]
[1753835629194,41.9828,3769.0,3768.9,1.6216]
[1753835629791,40.8,3769.0,3768.9,1.6216]
[1753835629992,21.563,3769.0,3768.9,2.6652]
[1753835630192,21.563,3769.0,3768.9,3.19593]
[1753835630595,1.9251,3769.4,3769.3,0.53068]
[1753835630798,1.9251,3769.4,3769.2,0.53068]
[1753835630799,1.9251,3769.3,3769.2,0.53068]
[1753835630993,21.562,3769.4,3767.6,0.4673]
[1753835630994,0.53078,3768.6,3767.6,0.4673]
[1753835631196,27.88868,3769.4,3767.7,0.5309]
[1753835631197,1.1828,3768.3,3767.7,0.5309]
[1753835631495,27.7718,3768.3,3768.2,0.01487054]
[1753835632095,22.7718,3768.3,3768.2,0.01487054]
[1753835632497,63.5718,3768.3,3768.2,0.01487054]
[1753835635203,64.3300387,3768.3,3768.2,0.01487054]
[1753835635406,68.87930348,3768.3,3768.2,0.01487054]
[1753835635601,64.33006086,3768.3,3768.2,0.01487054]
[1753835637004,42.74106086,3768.3,3768.2,0.48217054]
[1753835637308,65.2556488,3768.3,3768.2,1.63647054]
[1753835637502,65.2556488,3768.3,3768.2,2.68007054]
[1753835637708,65.2556488,3768.3,3768.2,0.01487054]
[1753835638099,64.32106086,3768.3,3768.2,0.01487054]
[1753835638400,65.24787253,3768.3,3768.2,0.01487054]
[1753835638911,70.55537601,3768.3,3768.2,0.01487054]
[1753835639110,69.62099547,3768.3,3768.2,0.01487054]
[1753835639409,76.02232799,3768.3,3768.2,0.01487054]
[1753835639608,76.02232799,3768.3,3767.8,0.19639848]
[1753835639609,1.27317,3767.9,3767.8,0.19639848]
[1753835639804,24.11163086,3767.9,3767.8,0.19639848]
[1753835640208,24.78923086,3767.9,3767.8,0.19639848]
[1753835642110,26.19056338,3767.9,3767.8,0.19639848]
[1753835642306,31.49863031,3767.9,3767.8,0.19639848]
[1753835642708,72.29863031,3767.9,3767.8,0.19639848]
[1753835642908,77.29863031,3767.9,3767.8,0.19639848]
[1753835643116,75.89729779,3767.9,3767.8,0.19639848]
[1753835643315,77.29863031,3767.9,3767.8,0.19639848]
[1753835643711,75.89729779,3767.9,3767.8,0.19639848]
[1753835644916,70.89729779,3767.9,3767.8,0.19639848]
[1753835645306,72.30044753,3767.9,3767.8,0.19639848]
[1753835645507,72.30024111,3767.9,3767.8,0.19639848]
[1753835645704,70.89729779,3767.9,3767.8,0.19639848]
[1753835646514,64.48243086,3767.9,3767.8,2.21269848]
[1753835646715,66.55794869,3767.9,3767.8,2.86159848]
[1753835647315,71.86601562,3767.9,3767.8,2.86159848]
[1753835647513,0.636,3766.7,3766.6,0.53105]
[1753835647717,1.32727,3767.7,3766.6,0.53105]
[1753835647718,0.93681425,3767.0,3766.8,0.6489]
[1753835647913,46.10806693,3767.9,3765.6,1.328]
[1753835647914,0.93681425,3767.1,3766.9,3.19622]
[1753835648104,0.72402138,3767.3,3767.2,3.19617]
[1753835648311,46.109758,3767.9,3767.8,1.57449]
[1753835648510,1.87280753,3768.5,3768.4,1.0436]
[1753835648716,21.581,3768.5,3768.4,2.6094]
[1753835648917,1.7929,3768.0,3767.9,2.6094]
[1753835649115,5.9848218,3768.5,3768.4,1.4656]
[1753835649317,22.2796,3768.5,3768.4,2.6094]
[1753835649512,62.402,3768.5,3768.4,2.6094]
[1753835649718,62.412,3768.5,3768.4,2.6094]
[1753835649919,3.26414,3768.2,3768.1,0.3273]
[1753835650120,24.87614,3768.2,3768.1,0.3273]
[1753835650418,46.1072218,3768.5,3767.6,0.6338]
[1753835650419,1.20851,3767.7,3767.6,0.6338]
[1753835650619,1.20851,3767.7,3767.6,0.3273]
[1753835650620,24.87621,3767.7,3767.6,0.3273]
[1753835650918,1.16693,3767.5,3767.4,0.3273]
[1753835651221,1.0712,3767.2,3767.1,0.3273]
[1753835651419,63.4872,3767.2,3767.1,1.971]
[1753835651618,63.4872,3767.2,3767.1,2.6094]
[1753835651818,65.1493,3767.2,3767.1,2.6094]
[1753835652521,65.1493,3767.2,3767.1,1.4656]
[1753835652713,0.6776,3767.0,3766.4,0.422]
[1753835653020,0.6776,3766.7,3766.6,1.0436]
[1753835653215,1.7488,3766.7,3766.6,2.6094]
[1753835653514,2.254,3767.0,3766.9,1.0436]
[1753835653720,2.254,3767.0,3766.9,2.6094]
[1753835654117,2.7714,3767.0,3766.9,2.6094]
[1753835654731,2.7714,3767.0,3766.9,1.4656]
[1753835654917,21.623,3767.1,3765.5,39.54603]
[1753835654918,1.1186,3766.4,3766.3,1.65799]
[1753835655225,21.937,3766.9,3766.8,1.65793]
[1753835655420,21.937,3766.9,3766.8,3.29463]
[1753835655618,22.14902,3766.9,3765.9,1.32788]
[1753835655921,2.7585,3766.3,3766.2,2.7636]
[1753835656419,21.618,3766.6,3766.5,2.4107]
[1753835656722,21.618,3766.6,3766.5,2.7636]
[1753835657323,24.3765,3766.6,3766.5,2.7636]
[1753835657526,24.3765,3766.6,3766.5,2.63347]
[1753835657822,24.3765,3766.6,3766.5,2.7636]
[1753835658224,1.1186,3766.0,3765.9,0.53115]
[1753835658419,2.7585,3766.0,3765.9,0.53115]
[1753835658614,2.7585,3766.0,3765.6,0.461]
[1753835658615,2.279,3765.9,3765.6,0.461]
[1753835658925,2.7585,3765.9,3765.8,1.85020278]
[1753835659218,40.8,3765.9,3765.8,2.96010278]
[1753835659413,63.4129,3765.9,3765.8,2.96010278]
[1753835659617,63.4129,3765.9,3765.8,0.97050278]
[1753835659618,64.0559,3765.9,3765.8,0.97050278]
[1753835659813,64.0559,3765.9,3765.8,0.52180278]
[1753835660213,64.0559,3765.9,3765.8,0.19650278]
[1753835660214,69.0559,3765.9,3765.8,0.19650278]
[1753835660420,2.7585,3765.3,3765.2,0.01859106]
[1753835660621,24.3815,3765.3,3765.2,0.01859106]
[1753835661224,24.91274,3765.3,3765.2,0.01859106]
[1753835661617,0.65,3765.3,3765.2,2.78219106]
[1753835661824,63.073,3765.3,3765.2,2.78219106]
[1753835662024,62.422,3765.3,3765.2,2.78219106]
[1753835662222,1.1225,3765.2,3764.4,0.53136]
[1753835662426,1.6399,3765.2,3764.3,0.53138]
[1753835662727,1.1225,3764.1,3763.8,1.3188072]
[1753835662932,1.6399,3763.9,3763.8,0.1966072]
[1753835663127,23.2909,3763.9,3763.8,0.1966072]
[1753835663329,1.6399,3763.9,3763.8,0.6576072]
[1753835663632,21.653,3763.9,3763.8,0.1966072]
[1753835663832,23.2929,3763.9,3763.8,0.1966072]
[1753835664135,63.5755,3763.9,3763.8,1.3188072]
[1753835664327,64.0929,3763.9,3763.8,0.6576072]
[1753835664629,39.56719,3765.1,3763.9,0.53144]
[1753835664630,21.662,3764.2,3763.9,0.53144]
[1753835664830,38.239,3765.1,3765.0,2.16798]
[1753835664831,38.882,3765.1,3765.0,2.16798]
[1753835665032,0.643,3765.5,3765.2,2.16795]
[1753835665232,38.77713,3766.2,3765.6,0.461]
[1753835665421,0.9969,3765.8,3765.5,0.53121]
[1753835665633,41.443,3765.7,3765.6,1.6367]
[1753835665831,62.477,3765.7,3765.6,1.1757]
[1753835666026,1.1604,3766.1,3765.6,1.1757]
[1753835666027,1.1604,3766.1,3766.0,0.53114]
[1753835666334,21.682,3766.1,3766.0,2.16784]
[1753835667034,0.643,3766.5,3766.4,0.53109]
[1753835667228,22.327,3766.5,3766.4,1.6367]
[1753835667425,1.6399,3766.5,3766.4,1.6367]
[1753835667728,1.6399,3766.5,3766.3,0.53109]
[1753835667729,21.681,3766.7,3766.6,1.6367]